fUSD/lending_fUSD_20250113
["ID","MTS","AMOUNT","RATE_DAILY","PERIOD"]
[348851593,1736811038470,-539.92,9.891e-05,2]
[348851594,1736811038480,-500.0,9.891e-05,2]
[348851595,1736811038490,-622.33,9.891e-05,2]
[348851596,1736811038499,-505.02,9.891e-05,2]
[348851597,1736811038507,-500.0,9.891e-05,2]
[348851598,1736811038516,-500.0,9.891e-05,2]
[348851599,1736811038525,-500.0,9.891e-05,2]
[348851600,1736811038534,-500.0,9.891e-05,2]
[348851601,1736811038544,-500.0,9.891e-05,2]
[348851602,1736811038554,-500.0,9.891e-05,2]
[348851603,1736811038563,-866.52,9.891e-05,2]
[348851604,1736811038573,-500.0,9.891e-05,2]
[348851605,1736811038582,-935.11,9.891e-05,2]
[348851606,1736811038592,-500.0,9.892e-05,2]
[348851607,1736811038601,-581.11322584,9.892e-05,2]
[348851608,1736811038610,-500.0,9.892e-05,2]
[348851609,1736811038619,-500.0,9.892e-05,2]
[348851610,1736811038629,-500.0,9.892e-05,2]
[348851611,1736811038639,-500.0,9.892e-05,2]
[348851612,1736811038648,-500.0,9.892e-05,2]
[348851613,1736811038658,-500.0,9.892e-05,2]
[348851614,1736811038668,-500.0,9.892e-05,2]
[348851615,1736811038678,-500.0,9.892e-05,2]
[348851616,1736811038687,-500.0,9.892e-05,2]
[348851617,1736811038697,-500.0,9.892e-05,2]
[348851618,1736811038707,-500.0,9.892e-05,2]
[348851619,1736811038717,-500.0,9.892e-05,2]
[348851620,1736811038727,-500.0,9.892e-05,2]
[348851621,1736811038736,-500.0,9.892e-05,2]
[348851622,1736811038746,-500.0,9.892e-05,2]
[348851623,1736811038756,-500.0,9.892e-05,2]
[348851624,1736811038766,-500.0,9.892e-05,2]
[348851625,1736811038775,-500.0,9.892e-05,2]
[348851626,1736811038784,-500.0,9.892e-05,2]
[348851627,1736811038794,-500.0,9.892e-05,2]
[348851628,1736811038804,-500.0,9.892e-05,2]
[348851629,1736811038813,-500.0,9.892e-05,2]
[348851630,1736811038825,-621.07087953,9.892e-05,2]
[348851631,1736811038835,-500.0,9.892e-05,2]
[348851632,1736811038844,-500.0,9.892e-05,2]
[348851633,1736811038853,-500.0,9.892e-05,2]
[348851634,1736811038862,-500.0,9.892e-05,2]
[348851635,1736811038872,-500.0,9.892e-05,2]
[348851636,1736811038882,-500.0,9.892e-05,2]
[348851637,1736811038891,-500.0,9.892e-05,2]
[348851638,1736811038904,-500.0,9.892e-05,2]
[348851639,1736811038914,-500.0,9.892e-05,2]
[348851640,1736811038923,-511.23022973,9.892e-05,2]
[348851641,1736811038933,-500.0,9.892e-05,2]
[348851642,1736811038943,-1213.84,9.892e-05,2]
[348851643,1736811038952,-508.70201572,9.892e-05,2]
[348851644,1736811038962,-500.0,9.892e-05,2]
[348851645,1736811038972,-508.12237664,9.892e-05,2]
[348851646,1736811038982,-1001.67,9.892e-05,2]
[348851647,1736811038993,-500.0,9.892e-05,2]
[348851648,1736811039003,-500.0,9.892e-05,2]
[348851649,1736811039012,-500.0,9.892e-05,2]
[348851650,1736811039021,-1569.49,9.892e-05,2]
[348851651,1736811039031,-874.64,9.892e-05,2]
[348851652,1736811039041,-500.0,9.892e-05,2]
[348851653,1736811039051,-500.0,9.892e-05,2]
[348851654,1736811039060,-500.0,9.892e-05,2]
[348851655,1736811039069,-511.11,9.892e-05,2]
[348851656,1736811039079,-500.0,9.892e-05,2]
[348851657,1736811039088,-500.0,9.892e-05,2]
[348851658,1736811039098,-1538.73,9.892e-05,2]
[348851659,1736811039108,-500.0,9.892e-05,2]
[348851660,1736811039118,-1631.19,9.892e-05,2]
[348851661,1736811039128,-500.0,9.892e-05,2]
[348851662,1736811039137,-1619.79,9.892e-05,2]
[348851663,1736811039146,-3607.4,9.892e-05,2]
[348851664,1736811039156,-1648.3,9.892e-05,2]
[348851665,1736811039165,-2602.34,9.892e-05,2]
[348851666,1736811039175,-531.03,9.892e-05,2]
[348851667,1736811039184,-2205.41,9.892e-05,2]
[348851668,1736811039194,-1323.27,9.892e-05,2]
[348851669,1736811039203,-1262.08,9.892e-05,2]
[348851670,1736811039213,-2306.45,9.892e-05,2]
[348851671,1736811039222,-6483.51,9.892e-05,2]
[348851672,1736811039232,-1430.08,9.892e-05,2]
[348851673,1736811039243,-192.81459669,9.892e-05,2]
[348851674,1736811039252,-500.0,9.892e-05,2]
[348851675,1736811039261,-1241.02,9.892e-05,2]
[348851676,1736811039271,-500.0,9.892e-05,2]
[348851677,1736811039280,-610.86,9.892e-05,2]
[348851678,1736811039289,-2373.3,9.892e-05,2]
[348851679,1736811039298,-910.89,9.892e-05,2]
[348851680,1736811039307,-2478.71,9.892e-05,2]
[348851681,1736811039317,-3286.75,9.892e-05,2]
[348851682,1736811039326,-6795.78,9.892e-05,2]
[348851683,1736811039335,-1857.18,9.892e-05,2]
[348851684,1736811039344,-999.86,9.892e-05,2]
[348851685,1736811039353,-1596.54,9.892e-05,2]
[348851686,1736811039362,-500.0,9.892e-05,2]
[348851687,1736811039371,-3999.65,9.892e-05,2]
[348851688,1736811039381,-1201.81,9.892e-05,2]
[348851689,1736811039390,-2859.08,9.892e-05,2]
[348851690,1736811039399,-1198.15,9.892e-05,2]
[348851691,1736811039408,-953.08,9.892e-05,2]
[348851692,1736811039418,-575.28,9.892e-05,2]
[348851693,1736811039427,-500.0,9.892e-05,2]
[348851694,1736811039436,-924.43,9.892e-05,2]
[348851695,1736811039445,-500.0,9.892e-05,2]
[348851696,1736811039454,-500.0,9.892e-05,2]
[348851697,1736811039463,-1765.51,9.892e-05,2]
[348851698,1736811039472,-857.27,9.892e-05,2]
[348851699,1736811039481,-500.0,9.892e-05,2]
[348851700,1736811039490,-500.0,9.892e-05,2]
[348851701,1736811039499,-877.55,9.892e-05,2]
[348851702,1736811039509,-500.0,9.892e-05,2]
[348851703,1736811039518,-1684.55,9.892e-05,2]
[348851704,1736811039527,-921.49,9.892e-05,2]
[348851705,1736811039538,-1736.36,9.892e-05,2]
[348851706,1736811039547,-500.0,9.892e-05,2]
[348851707,1736811039557,-500.0,9.892e-05,2]
[348851708,1736811039566,-500.0,9.892e-05,2]
[348851709,1736811039575,-500.0,9.892e-05,2]
[348851710,1736811039584,-500.0,9.892e-05,2]
[348851711,1736811039594,-1108.89,9.892e-05,2]
[348851712,1736811039603,-500.0,9.893e-05,2]
[348851713,1736811039612,-500.0,9.893e-05,2]
[348851714,1736811039622,-557.01,9.893e-05,2]
[348851715,1736811039631,-500.0,9.893e-05,2]
[348851716,1736811039640,-500.0,9.893e-05,2]
[348851717,1736811039650,-500.0,9.893e-05,2]
[348851718,1736811039659,-621.03,9.893e-05,2]
[348851719,1736811039668,-826.63,9.893e-05,2]
[348851720,1736811039677,-500.0,9.893e-05,2]
[348851721,1736811039686,-611.54,9.893e-05,2]
[348851722,1736811039696,-662.59,9.893e-05,2]
[348851723,1736811039705,-500.0,9.893e-05,2]
[348851724,1736811039714,-500.0,9.893e-05,2]
[348851725,1736811039723,-500.0,9.893e-05,2]
[348851726,1736811039732,-500.0,9.893e-05,2]
[348851727,1736811039741,-500.0,9.893e-05,2]
[348851728,1736811039751,-500.0,9.893e-05,2]
[348851729,1736811039760,-500.0,9.893e-05,2]
[348851732,1736811039769,-759.25,9.893e-05,2]
[348851734,1736811039779,-797.5,9.893e-05,2]
[348851736,1736811039789,-777.55,9.893e-05,2]
[348851738,1736811039799,-500.0,9.893e-05,2]
[348851740,1736811039809,-500.0,9.893e-05,2]
[348851741,1736811039820,-500.0,9.893e-05,2]
[348851742,1736811039829,-500.0,9.893e-05,2]
[348851743,1736811039840,-500.0,9.893e-05,2]
[348851744,1736811039850,-500.0,9.893e-05,2]
[348851745,1736811039861,-500.0,9.893e-05,2]
[348851746,1736811039871,-500.0,9.893e-05,2]
[348851747,1736811039880,-927.25,9.893e-05,2]
[348851748,1736811039889,-500.0,9.893e-05,2]
[348851749,1736811039900,-500.0,9.893e-05,2]
[348851750,1736811039910,-500.0,9.893e-05,2]
[348851751,1736811039920,-500.0,9.893e-05,2]
[348851752,1736811039929,-870.22,9.893e-05,2]
[348851753,1736811039938,-500.0,9.893e-05,2]
[348851754,1736811039950,-869.82,9.893e-05,2]
[348851755,1736811039960,-500.0,9.893e-05,2]
[348851756,1736811039970,-903.37,9.893e-05,2]
[348851757,1736811039981,-500.0,9.893e-05,2]
[348851758,1736811039991,-500.0,9.893e-05,2]
[348851759,1736811040000,-500.0,9.893e-05,2]
[348851760,1736811040009,-500.0,9.893e-05,2]
[348851761,1736811040019,-225.05,9.893e-05,2]
[348851762,1736811040030,-500.0,9.893e-05,2]
[348851763,1736811040041,-904.61,9.893e-05,2]
[348851764,1736811040052,-500.0,9.893e-05,2]
[348851765,1736811040062,-500.0,9.893e-05,2]
[348851766,1736811040073,-500.0,9.893e-05,2]
[348851767,1736811040083,-500.0,9.893e-05,2]
[348851768,1736811040093,-634.57556757,9.893e-05,2]
[348851769,1736811040102,-500.0,9.893e-05,2]
[348851770,1736811040111,-500.0,9.893e-05,2]
[348851771,1736811040120,-707.87,9.893e-05,2]
[348851772,1736811040130,-500.0,9.893e-05,2]
[348851773,1736811040139,-1284.57,9.893e-05,2]
[348851774,1736811040347,-500.0,9.893e-05,2]
[348851775,1736811040359,-500.0,9.893e-05,2]
[348851776,1736811040368,-500.0,9.893e-05,2]
[348851777,1736811040377,-1283.9,9.893e-05,2]
[348851778,1736811040386,-931.67,9.893e-05,2]
[348851779,1736811040395,-693.5,9.893e-05,2]
[348851780,1736811040404,-711.05,9.893e-05,2]
[348851781,1736811040413,-500.0,9.893e-05,2]
[348851782,1736811040422,-522.5,9.893e-05,2]
[348851783,1736811040431,-937.15,9.893e-05,2]
[348851784,1736811040440,-1899.07,9.893e-05,2]
[348851785,1736811040450,-531.36,9.893e-05,2]
[348851786,1736811040459,-711.76,9.893e-05,2]
[348851788,1736811040469,-500.0,9.893e-05,2]
[348851790,1736811040478,-500.0,9.893e-05,2]
[348851792,1736811040487,-500.0,9.893e-05,2]
[348851794,1736811040496,-3614.1,9.893e-05,2]
[348851796,1736811040505,-648.26,9.893e-05,2]
[348851798,1736811040514,-500.0,9.893e-05,2]
[348851800,1736811040523,-585.73,9.893e-05,2]
[348851801,1736811040532,-500.0,9.893e-05,2]
[348851802,1736811040541,-500.0,9.893e-05,2]
[348851803,1736811040551,-9498.61,9.893e-05,2]
[348851804,1736811040560,-2583.09,9.893e-05,2]
[348851805,1736811040569,-959.453308,9.893e-05,2]
[348851806,1736811040578,-882.0,9.893e-05,2]
[348851807,1736811040587,-915.894073,9.893e-05,2]
[348851808,1736811040597,-850.23,9.893e-05,2]
[348851809,1736811040606,-737.31,9.893e-05,2]
[348851810,1736811040615,-500.0,9.893e-05,2]
[348851811,1736811040624,-500.0,9.893e-05,2]
[348851812,1736811040633,-1346.15,9.893e-05,2]
[348851813,1736811040643,-755.84,9.893e-05,2]
[348851814,1736811040652,-500.0,9.893e-05,2]
[348851815,1736811040661,-500.0,9.893e-05,2]
[348851816,1736811040671,-500.0,9.893e-05,2]
[348851817,1736811040681,-500.0,9.893e-05,2]
[348851818,1736811040690,-500.0,9.893e-05,2]
[348851819,1736811040700,-1764.8,9.893e-05,2]
[348851820,1736811040710,-2910.93,9.893e-05,2]
[348851821,1736811040721,-500.0,9.893e-05,2]
[348851822,1736811040730,-500.0,9.893e-05,2]
[348851823,1736811040739,-500.0,9.893e-05,2]
[348851824,1736811040749,-500.0,9.893e-05,2]
[348851825,1736811040758,-886.19,9.893e-05,2]
[348851826,1736811040767,-578.06,9.893e-05,2]
[348851827,1736811040776,-3778.81,9.893e-05,2]
[348851828,1736811040786,-500.0,9.893e-05,2]
[348851829,1736811040795,-500.0,9.893e-05,2]
[348851830,1736811040805,-500.0,9.893e-05,2]
[348851831,1736811040814,-2044.17,9.893e-05,2]
[348851832,1736811040823,-500.0,9.893e-05,2]
[348851833,1736811040833,-500.0,9.893e-05,2]
[348851834,1736811040842,-500.0,9.893e-05,2]
[348851835,1736811040852,-500.0,9.893e-05,2]
[348851836,1736811040861,-500.0,9.893e-05,2]
[348851837,1736811040871,-500.0,9.893e-05,2]
[348851838,1736811040880,-826.53,9.893e-05,2]
[348851839,1736811040889,-500.0,9.893e-05,2]
[348851840,1736811040902,-500.0,9.893e-05,2]
[348851841,1736811040910,-2672.62,9.893e-05,2]
[348851842,1736811040919,-975.49,9.893e-05,2]
[348851843,1736811040929,-500.0,9.893e-05,2]
[348851844,1736811040938,-1417.44,9.893e-05,2]
[348851845,1736811040949,-500.0,9.893e-05,2]
[348851846,1736811040958,-500.0,9.893e-05,2]
[348851847,1736811040967,-654.79,9.893e-05,2]
[348851848,1736811040977,-500.0,9.893e-05,2]
[348851849,1736811040987,-617.97861376,9.893e-05,2]
[348851850,1736811040997,-500.0,9.893e-05,2]
[348851851,1736811041006,-500.0,9.893e-05,2]
[348851852,1736811041015,-500.0,9.893e-05,2]
[348851853,1736811041025,-1562.81,9.894e-05,2]
[348851854,1736811041034,-342.39,9.894e-05,2]
[348851855,1736811041044,-1000.0,9.894e-05,2]
[348851856,1736811041053,-971.99,9.894e-05,2]
[348851857,1736811041063,-500.0,9.894e-05,2]
[348851858,1736811041072,-2208.47,9.894e-05,2]
[348851859,1736811041082,-1832.15,9.894e-05,2]
[348851860,1736811041091,-4720.5078,9.9e-05,2]
[348851861,1736811041102,-173.68460617,9.937e-05,2]
[348851862,1736811041112,-261.91024239,9.973e-05,2]
[348851863,1736811041122,-500.0,9.973e-05,2]
[348851864,1736811041131,-1380.7364411,9.992e-05,2]
[348851865,1736811041140,-574.6528031,9.992e-05,2]
[348851866,1736811041149,-650.8027167,9.992e-05,2]
[348851867,1736811041158,-3363.164,9.993e-05,2]
[348851868,1736811041167,-163.704,9.993e-05,2]
[348851869,1736811041177,-686.5702182,9.993e-05,2]
[348851870,1736811041186,-722.3377196,9.993e-05,2]
[348851871,1736811041196,-978.37,9.998e-05,2]
[348851872,1736811041205,-752.52,9.998e-05,2]
[348851873,1736811041215,-2689.91,9.998e-05,2]
[348851874,1736811041224,-870.36,9.998e-05,2]
[348851875,1736811041234,-735.63,9.998e-05,2]
[348851876,1736811041244,-500.0,9.998e-05,2]
[348851877,1736811041253,-500.0,9.998e-05,2]
[348851878,1736811041263,-814.16,9.998e-05,2]
[348851879,1736811041272,-1093.87,9.998e-05,2]
[348851880,1736811041282,-753.96,9.998e-05,2]
[348851881,1736811041291,-1867.66,9.998e-05,2]
[348851882,1736811041301,-1516.45,9.998e-05,2]
[348851883,1736811041310,-2138.41,9.998e-05,2]
[348851884,1736811041320,-390.21,9.999e-05,2]
[348851885,1736811041330,-500.0,9.999e-05,2]
[348851886,1736811041339,-565.64,9.999e-05,2]
[348851887,1736811041349,-500.0,9.999e-05,2]
[348851888,1736811041359,-598.86120518,9.999e-05,2]
[348851889,1736811041368,-500.0,9.999e-05,2]
[348851890,1736811041378,-500.0,9.999e-05,2]
[348851891,1736811041387,-500.0,9.999e-05,2]
[348851892,1736811041396,-500.0,9.999e-05,2]
[348851893,1736811041407,-500.0,9.999e-05,2]
[348851894,1736811041416,-500.0,9.999e-05,2]
[348851895,1736811041425,-500.0,9.999e-05,2]
[348851896,1736811041434,-500.0,9.999e-05,2]
[348851897,1736811041443,-500.0,9.999e-05,2]
[348851898,1736811041452,-500.0,9.999e-05,2]
[348851899,1736811041462,-500.0,9.999e-05,2]
[348851900,1736811041472,-290.0173526,9.999e-05,2]
[348851901,1736811041482,-500.0,9.999e-05,2]
[348851902,1736811041492,-500.0,9.999e-05,2]
[348851903,1736811041501,-500.0,9.999e-05,2]
[348851904,1736811041511,-500.0,9.999e-05,2]
[348851905,1736811041520,-500.0,9.999e-05,2]
[348851906,1736811041530,-500.0,9.999e-05,2]
[348851907,1736811041539,-500.0,9.999e-05,2]
[348851908,1736811041548,-500.0,9.999e-05,2]
[348851909,1736811041558,-500.0,9.999e-05,2]
[348851910,1736811041567,-500.0,9.999e-05,2]
[348851911,1736811041576,-500.0,9.999e-05,2]
[348851912,1736811041586,-500.0,9.999e-05,2]
[348851913,1736811041595,-592.26981165,9.999e-05,2]
[348851914,1736811041604,-500.0,9.999e-05,2]
[348851915,1736811041614,-500.0,9.999e-05,2]
[348851916,1736811041623,-500.0,9.999e-05,2]
[348851917,1736811041632,-500.0,9.999e-05,2]
[348851918,1736811041642,-500.0,9.999e-05,2]
[348851919,1736811041651,-464.25277512,9.999e-05,2]
[348851920,1736811041660,-521.58209063,9.999e-05,2]
[348851921,1736811041670,-500.0,9.999e-05,2]
[348851922,1736811041679,-500.0,9.999e-05,2]
[348851923,1736811041689,-500.0,9.999e-05,2]
[348851924,1736811041699,-500.0,9.999e-05,2]
[348851925,1736811041709,-500.0,9.999e-05,2]
[348851926,1736811041719,-500.0,9.999e-05,2]
[348851927,1736811041728,-500.0,9.999e-05,2]
[348851928,1736811041738,-500.0,9.999e-05,2]
[348851929,1736811041747,-584.37610873,9.999e-05,2]
[348851930,1736811041757,-500.0,9.999e-05,2]
[348851931,1736811041767,-500.0,9.999e-05,2]
[348851932,1736811041776,-500.0,9.999e-05,2]
[348851933,1736811041787,-500.0,9.999e-05,2]
[348851934,1736811041796,-500.0,9.999e-05,2]
[348851935,1736811041806,-500.0,9.999e-05,2]
[348851936,1736811041815,-500.0,9.999e-05,2]
[348851937,1736811041824,-500.0,9.999e-05,2]
[348851938,1736811041834,-500.0,9.999e-05,2]
[348851939,1736811041843,-500.0,9.999e-05,2]
[348851940,1736811041852,-500.0,9.999e-05,2]
[348851941,1736811041862,-500.0,9.999e-05,2]
[348851942,1736811041871,-500.0,9.999e-05,2]
[348851943,1736811041880,-500.0,9.999e-05,2]
[348851944,1736811041890,-500.0,9.999e-05,2]
[348851945,1736811041902,-216.17575792,9.999e-05,2]
[348851946,1736811041911,-500.0,9.999e-05,2]
[348851947,1736811041921,-506.72994099,9.999e-05,2]
[348851948,1736811041930,-500.0,9.999e-05,2]
[348851949,1736811041940,-500.0,9.999e-05,2]
[348851950,1736811041950,-500.0,9.999e-05,2]
[348851951,1736811041959,-500.0,9.999e-05,2]
[348851952,1736811041968,-500.0,9.999e-05,2]
[348851953,1736811041978,-500.0,9.999e-05,2]
[348851954,1736811041987,-500.0,9.999e-05,2]
[348851955,1736811041996,-500.0,9.999e-05,2]
[348851956,1736811042005,-500.0,9.999e-05,2]
[348851957,1736811042015,-500.0,9.999e-05,2]
[348851958,1736811042023,-500.0,9.999e-05,2]
[348851959,1736811042032,-500.0,9.999e-05,2]
[348851960,1736811042041,-500.0,9.999e-05,2]
[348851961,1736811042050,-500.0,9.999e-05,2]
[348851962,1736811042059,-500.0,9.999e-05,2]
[348851963,1736811042068,-500.0,9.999e-05,2]
[348851964,1736811042077,-500.0,9.999e-05,2]
[348851965,1736811042085,-500.0,9.999e-05,2]
[348851966,1736811042094,-500.0,9.999e-05,2]
[348851967,1736811042103,-500.0,9.999e-05,2]
[348851968,1736811042112,-500.0,9.999e-05,2]
[348851969,1736811042121,-500.0,9.999e-05,2]
[348851970,1736811042130,-500.0,9.999e-05,2]
[348851971,1736811042139,-500.0,9.999e-05,2]
[348851972,1736811042148,-500.0,9.999e-05,2]
[348851973,1736811042157,-500.0,9.999e-05,2]
[348851974,1736811042166,-500.0,9.999e-05,2]
[348851975,1736811042175,-374.34872032,9.999e-05,2]
[348851976,1736811042184,-500.0,9.999e-05,2]
[348851977,1736811042193,-500.0,9.999e-05,2]
[348851978,1736811042202,-500.0,9.999e-05,2]
[348851979,1736811042211,-500.0,9.999e-05,2]
[348851980,1736811042219,-500.0,9.999e-05,2]
[348851981,1736811042228,-500.0,9.999e-05,2]
[348851982,1736811042237,-500.0,9.999e-05,2]
[348851983,1736811042247,-500.0,9.999e-05,2]
[348851984,1736811042256,-500.0,9.999e-05,2]
[348851985,1736811042265,-500.0,9.999e-05,2]
[348851986,1736811042274,-263.12235932,9.999e-05,2]
[348851987,1736811042283,-500.0,9.999e-05,2]
[348851988,1736811042291,-500.0,9.999e-05,2]
[348851989,1736811042300,-500.0,9.999e-05,2]
[348851990,1736811042309,-500.0,9.999e-05,2]
[348851991,1736811042318,-500.0,9.999e-05,2]
[348851992,1736811042326,-500.0,9.999e-05,2]
[348851993,1736811042335,-500.0,9.999e-05,2]
[348851994,1736811042344,-500.0,9.999e-05,2]
[348851995,1736811042353,-500.0,9.999e-05,2]
[348851996,1736811042362,-500.0,9.999e-05,2]
[348851997,1736811042372,-500.0,9.999e-05,2]
[348851998,1736811042381,-500.0,9.999e-05,2]
[348851999,1736811042390,-500.0,9.999e-05,2]
[348852000,1736811042400,-500.0,9.999e-05,2]
[348852001,1736811042411,-500.0,9.999e-05,2]
[348852002,1736811042420,-500.0,9.999e-05,2]
[348852003,1736811042430,-500.0,9.999e-05,2]
[348852004,1736811042439,-500.0,9.999e-05,2]
[348852005,1736811042449,-500.0,9.999e-05,2]
[348852006,1736811042458,-500.0,9.999e-05,2]
[348852007,1736811042467,-500.0,9.999e-05,2]
[348852008,1736811042476,-500.0,9.999e-05,2]
[348852009,1736811042485,-500.0,9.999e-05,2]
[348852010,1736811042495,-194.64967924,9.999e-05,2]
[348852011,1736811042503,-500.0,9.999e-05,2]
[348852012,1736811042513,-500.0,9.999e-05,2]
[348852013,1736811042523,-500.0,9.999e-05,2]
[348852014,1736811042533,-500.0,9.999e-05,2]
[348852015,1736811042544,-500.0,9.999e-05,2]
[348852016,1736811042553,-500.0,9.999e-05,2]
[348852017,1736811042563,-500.0,9.999e-05,2]
[348852018,1736811042573,-500.0,9.999e-05,2]
[348852019,1736811042583,-500.0,9.999e-05,2]
[348852020,1736811042592,-500.0,9.999e-05,2]
[348852021,1736811042601,-500.0,9.999e-05,2]
[348852022,1736811042609,-500.0,9.999e-05,2]
[348852023,1736811042618,-500.0,9.999e-05,2]
[348852024,1736811042628,-500.0,9.999e-05,2]
[348852025,1736811042637,-500.0,9.999e-05,2]
[348852026,1736811042647,-500.0,9.999e-05,2]
[348852027,1736811042656,-500.0,9.999e-05,2]
[348852028,1736811042666,-500.0,9.999e-05,2]
[348852030,1736811042676,-500.0,9.999e-05,2]
[348852032,1736811042686,-500.0,9.999e-05,2]
[348852034,1736811042696,-500.0,9.999e-05,2]
[348852035,1736811042706,-500.0,9.999e-05,2]
[348852036,1736811042715,-500.0,9.999e-05,2]
[348852037,1736811042724,-500.0,9.999e-05,2]
[348852038,1736811042733,-500.0,9.999e-05,2]
[348852039,1736811042747,-500.0,9.999e-05,2]
[348852040,1736811042756,-500.0,9.999e-05,2]
[348852041,1736811042766,-500.0,9.999e-05,2]
[348852042,1736811042775,-500.0,9.999e-05,2]
[348852043,1736811042785,-500.0,9.999e-05,2]
[348852044,1736811042794,-500.0,9.999e-05,2]
[348852045,1736811042804,-500.0,9.999e-05,2]
[348852046,1736811042813,-500.0,9.999e-05,2]
[348852048,1736811042822,-500.0,9.999e-05,2]
[348852049,1736811042832,-500.0,9.999e-05,2]
[348852050,1736811042841,-500.0,9.999e-05,2]
[348852052,1736811042851,-500.0,9.999e-05,2]
[348852053,1736811042859,-500.0,9.999e-05,2]
[348852055,1736811042868,-500.0,9.999e-05,2]
[348852056,1736811042877,-500.0,9.999e-05,2]
[348852058,1736811042886,-500.0,9.999e-05,2]
[348852060,1736811042897,-500.0,9.999e-05,2]
[348852062,1736811042908,-500.0,9.999e-05,2]
[348852064,1736811042918,-500.0,9.999e-05,2]
[348852065,1736811042927,-500.0,9.999e-05,2]
[348852067,1736811042936,-500.0,9.999e-05,2]
[348852068,1736811042946,-500.0,9.999e-05,2]
[348852069,1736811042956,-500.0,9.999e-05,2]
[348852070,1736811042966,-500.0,9.999e-05,2]
[348852071,1736811042975,-500.0,9.999e-05,2]
[348852072,1736811042984,-308.08453241,9.999e-05,2]
[348852073,1736811042995,-500.0,9.999e-05,2]
[348852074,1736811043005,-500.0,9.999e-05,2]
[348852075,1736811043014,-500.0,9.999e-05,2]
[348852076,1736811043023,-500.0,9.999e-05,2]
[348852077,1736811043032,-500.0,9.999e-05,2]
[348852078,1736811043041,-500.0,9.999e-05,2]
[348852079,1736811043050,-533.18787907,9.999e-05,2]
[348852080,1736811043059,-500.0,9.999e-05,2]
[348852081,1736811043068,-500.0,9.999e-05,2]
[348852082,1736811043078,-469.05575901,9.999e-05,2]
[348852083,1736811043087,-500.0,9.999e-05,2]
[348852084,1736811043096,-500.0,9.999e-05,2]
[348852085,1736811043105,-500.0,9.999e-05,2]
[348852086,1736811043115,-1321.46,9.999e-05,2]
[348852087,1736811043123,-229.6623268,9.999e-05,2]
[348852088,1736811043133,-1209.96,9.999e-05,2]
[348852089,1736811043142,-500.0,9.999e-05,2]
[348852090,1736811043151,-500.0,9.999e-05,2]
[348852091,1736811043160,-500.0,9.999e-05,2]
[348852092,1736811043169,-500.0,9.999e-05,2]
[348852093,1736811043179,-500.0,9.999e-05,2]
[348852094,1736811043188,-500.0,9.999e-05,2]
[348852095,1736811043198,-1542.83,9.999e-05,2]
[348852096,1736811043207,-500.0,9.999e-05,2]
[348852097,1736811043216,-500.0,9.999e-05,2]
[348852098,1736811043225,-500.0,9.999e-05,2]
[348852099,1736811043235,-500.0,9.999e-05,2]
[348852100,1736811043245,-500.0,9.999e-05,2]
[348852101,1736811043256,-500.0,9.999e-05,2]
[348852102,1736811043264,-500.0,9.999e-05,2]
[348852103,1736811043273,-500.0,9.999e-05,2]
[348852104,1736811043282,-1014.59,9.999e-05,2]
[348852105,1736811043291,-500.0,9.999e-05,2]
[348852106,1736811043300,-500.0,9.999e-05,2]
[348852107,1736811043310,-500.0,9.999e-05,2]
[348852108,1736811043319,-190.0436893,9.999e-05,2]
[348852109,1736811043328,-500.0,9.999e-05,2]
[348852110,1736811043337,-577.5320324,9.999e-05,2]
[348852111,1736811043346,-500.0,9.999e-05,2]
[348852112,1736811043355,-500.0,9.999e-05,2]
[348852113,1736811043364,-500.0,9.999e-05,2]
[348852114,1736811043374,-504.75877877,9.999e-05,2]
[348852115,1736811043383,-500.0,9.999e-05,2]
[348852116,1736811043392,-500.0,9.999e-05,2]